fUST/lending_fUST_20240317
["ID","MTS","AMOUNT","RATE_DAILY","PERIOD"]
[319274236,1710635432689,-500.0,0.00018629,2]
[319274237,1710635432698,-244.70491629,0.00018629,2]
[319274238,1710635432708,-500.0,0.00018629,2]
[319274239,1710635432719,-500.0,0.00018629,2]
[319274240,1710635432731,-500.0,0.00018629,2]
[319274241,1710635432741,-500.0,0.00018629,2]
[319274242,1710635432752,-500.0,0.00018629,2]
[319274243,1710635432763,-500.0,0.00018629,2]
[319274244,1710635432772,-272.32427809,0.00018629,2]
[319274245,1710635432782,-215.74447393,0.00018629,2]
[319274246,1710635432792,-500.0,0.00018629,2]
[319274247,1710635432802,-573.75316922,0.00018629,2]
[319274248,1710635432812,-500.0,0.00018629,2]
[319274249,1710635432823,-229.00547829,0.00018629,2]
[319274250,1710635432833,-500.0,0.00018629,2]
[319274251,1710635432845,-500.0,0.00018629,2]
[319274252,1710635432853,-500.0,0.00018629,2]
[319274253,1710635432862,-500.0,0.00018629,2]
[319274254,1710635432872,-270.99452171,0.00018629,2]
[319274255,1710635432883,-500.0,0.00018629,2]
[319274256,1710635432892,-500.0,0.00018629,2]
[319274257,1710635432901,-500.0,0.00018629,2]
[319274258,1710635432910,-500.0,0.00018629,2]
[319274259,1710635432919,-500.0,0.00018629,2]
[319274260,1710635432930,-500.0,0.00018629,2]
[319274261,1710635432941,-500.0,0.00018629,2]
[319274262,1710635432950,-540.66,0.00018629,2]
[319274263,1710635432960,-500.0,0.00018629,2]
[319274264,1710635432969,-500.0,0.00018629,2]
[319274265,1710635432978,-500.0,0.00018629,2]
[319274266,1710635432987,-307.56,0.00018629,2]
[319274267,1710635432997,-500.0,0.00018629,2]
[319274268,1710635433007,-54728.79921115,0.0001863,2]
[319274269,1710635433022,-2367.71484375,0.0001863,2]
[319274270,1710635433035,-858.87844997,0.0001863,2]
[319274322,1710635438610,-1333.4190839,0.0001863,2]
[319274391,1710635442144,-64420.00020465,0.0001863,2]
[319274415,1710635443429,-377.77920577,0.0001863,2]
[319274528,1710636632526,-200.0,0.000178,2]
[319274529,1710636632535,-958.12571358,0.0001853,2]
[319274530,1710636632544,-1000.0,0.0001853,2]
[319274531,1710636632558,-321.93735775,0.00018628,2]
[319274532,1710636632567,-556.28455181,0.00018629,2]
[319274533,1710636632576,-2020.56022276,0.00018629,2]
[319274534,1710636632586,-2137.23268489,0.00018629,2]
[319274535,1710636632595,-3485.06721835,0.00018629,2]
[319274536,1710636632604,-191.54405702,0.00018629,2]
[319274537,1710636632614,-1883.30131368,0.00018629,2]
[319274538,1710636632625,-294.77831715,0.00018629,2]
[319274539,1710636632635,-664.01,0.00018629,2]
[319274540,1710636632644,-664.01,0.00018629,2]
[319274541,1710636632654,-664.01,0.00018629,2]
[319274542,1710636632663,-664.01,0.00018629,2]
[319274543,1710636632672,-664.01,0.00018629,2]
[319274544,1710636632682,-664.01,0.00018629,2]
[319274545,1710636632691,-664.01,0.00018629,2]
[319274546,1710636632701,-664.01,0.00018629,2]
[319274547,1710636632711,-664.01,0.00018629,2]
[319274548,1710636632720,-664.01,0.00018629,2]
[319274549,1710636632729,-664.01,0.00018629,2]
[319274550,1710636632738,-664.01,0.00018629,2]
[319274551,1710636632747,-664.01,0.00018629,2]
[319274552,1710636632756,-664.01,0.00018629,2]
[319274553,1710636632766,-664.01,0.00018629,2]
[319274554,1710636632775,-664.01,0.00018629,2]
[319274555,1710636632793,-664.01,0.00018629,2]
[319274557,1710636632807,-664.01,0.00018629,2]
[319274559,1710636632816,-664.01,0.00018629,2]
[319274561,1710636632826,-664.01,0.00018629,2]
[319274563,1710636632835,-664.01,0.00018629,2]
[319274565,1710636632845,-664.01,0.00018629,2]
[319274567,1710636632854,-664.01,0.00018629,2]
[319274569,1710636632864,-664.17685047,0.00018629,2]
[319274571,1710636632873,-187.37706428,0.00018629,2]
[319274573,1710636632883,-500.0,0.00018629,2]
[319274575,1710636632892,-326.89,0.00018629,2]
[319274577,1710636632902,-401.1989927,0.00018629,2]
[319274834,1710636638659,-98.8010073,0.00018629,2]
[319274836,1710636638668,-500.0,0.00018629,2]
[319274838,1710636638677,-232.42086889,0.00018629,2]
[319274840,1710636638687,-172.65768134,0.00018629,2]
[319274842,1710636638697,-281.47326687,0.00018629,2]
[319274845,1710636638717,-235.37688813,0.00018629,2]
[319274847,1710636638726,-500.0,0.00018629,2]
[319274849,1710636638735,-251.73668391,0.00018629,2]
[319275339,1710636643641,-248.26331609,0.00018629,2]
[319275341,1710636643650,-500.0,0.00018629,2]
[319275343,1710636643660,-500.0,0.00018629,2]
[319275345,1710636643669,-500.0,0.00018629,2]
[319275347,1710636643678,-500.0,0.00018629,2]
[319275349,1710636643687,-502.40223265,0.00018629,2]
[319275351,1710636643697,-500.0,0.00018629,2]
[319275353,1710636643706,-500.0,0.00018629,2]
[319275355,1710636643716,-500.0,0.00018629,2]
[319275357,1710636643725,-500.0,0.00018629,2]
[319275359,1710636643734,-500.0,0.00018629,2]
[319275361,1710636643744,-500.0,0.00018629,2]
[319275363,1710636643753,-500.0,0.00018629,2]
[319275365,1710636643762,-500.0,0.00018629,2]
[319275367,1710636643771,-500.0,0.00018629,2]
[319275369,1710636643780,-500.0,0.00018629,2]
[319275371,1710636643789,-500.0,0.00018629,2]
[319275373,1710636643799,-493.87,0.00018629,2]
[319275375,1710636643810,-101792.94065487,0.0001863,2]
[319281301,1710637838005,-396.25,0.000178,2]
[319281304,1710637838015,-1000.0,0.0001853,2]
[319281305,1710637838026,-155.84660061,0.00018629,2]
[319281307,1710637838036,-223.97682907,0.00018629,2]
[319281309,1710637838045,-793.75981317,0.00018629,2]
[319281311,1710637838054,-311.36793859,0.00018629,2]
[319281313,1710637838063,-582.31,0.00018629,2]
[319281315,1710637838074,-582.31,0.00018629,2]
[319281317,1710637838083,-582.31,0.00018629,2]
[319281319,1710637838092,-582.31,0.00018629,2]
[319281321,1710637838103,-582.31,0.00018629,2]
[319281323,1710637838112,-582.31,0.00018629,2]
[319281325,1710637838121,-582.31,0.00018629,2]
[319281327,1710637838130,-582.31,0.00018629,2]
[319281329,1710637838141,-582.31,0.00018629,2]
[319281331,1710637838150,-582.31,0.00018629,2]
[319281333,1710637838160,-96.91828677,0.00018629,2]
[319281812,1710637842908,-485.39171323,0.00018629,2]
[319281814,1710637842918,-582.31,0.00018629,2]
[319281816,1710637842927,-582.31,0.00018629,2]
[319281818,1710637842936,-582.31,0.00018629,2]
[319281820,1710637842946,-582.31,0.00018629,2]
[319281822,1710637842955,-582.31,0.00018629,2]
[319281824,1710637842964,-582.31,0.00018629,2]
[319281826,1710637842973,-582.31,0.00018629,2]
[319281828,1710637842982,-582.31,0.00018629,2]
[319281830,1710637842994,-582.31,0.00018629,2]
[319281832,1710637843004,-582.31,0.00018629,2]
[319281834,1710637843014,-582.31,0.00018629,2]
[319281836,1710637843026,-582.31,0.00018629,2]
[319281838,1710637843035,-582.35,0.00018629,2]
[319281840,1710637843045,-500.0,0.00018629,2]
[319281842,1710637843054,-500.0,0.00018629,2]
[319281844,1710637843064,-500.0,0.00018629,2]
[319281846,1710637843074,-500.0,0.00018629,2]
[319281848,1710637843083,-500.0,0.00018629,2]
[319281850,1710637843092,-78433.5598305,0.0001863,2]
[319285900,1710638598838,155.00930056,0.000175,2]
[319285901,1710638606746,331.56393228,0.00017326,2]
[319285902,1710638614647,190.38496831,0.00017326,2]
[319285967,1710639032276,-331.56393228,0.00017683,2]
[319285969,1710639032287,-552.45302666,0.00017684,2]
[319286461,1710639038114,-1467.54613534,0.00017684,2]
[319286463,1710639038125,-161.66189775,0.00018529,2]
[319286465,1710639038135,-161.66189775,0.00018529,2]
[319286467,1710639038145,-161.66189775,0.0001853,2]
[319286469,1710639038156,-161.66189775,0.0001853,2]
[319286471,1710639038168,-455.53080539,0.0001853,2]
[319286947,1710639043525,-2614.70537967,0.0001853,2]
[319286950,1710639043537,-898.39954919,0.0001853,2]
[319287280,1710639046962,-13088.02681242,0.0001853,2]
[319287282,1710639046972,-1000.0,0.0001853,2]
[319287284,1710639046981,-174.0,0.000186,2]
[319287286,1710639046990,-235.194,0.00018611,2]
[319287288,1710639047000,-524.29941204,0.00018628,2]
[319287290,1710639047009,-1951.90972773,0.00018628,2]
[319287292,1710639047020,-290.63597598,0.00018628,2]
[319287294,1710639047030,-156.13331453,0.00018628,2]
[319287296,1710639047042,-187.3972946,0.00018628,2]
[319287298,1710639047051,-155.99696445,0.00018628,2]
[319287300,1710639047062,-179.7888452,0.00018628,2]
[319287302,1710639047071,-1079.66925,0.00018628,2]
[319287304,1710639047081,-669.42782765,0.00018628,2]
[319287306,1710639047090,-993.81205494,0.00018628,2]
[319287308,1710639047099,-155.47893273,0.00018628,2]
[319287310,1710639047110,-208.43582616,0.00018628,2]
[319287312,1710639047120,-191.4800443,0.00018628,2]
[319287314,1710639047129,-3500.01988252,0.00018628,2]
[319287316,1710639047140,-204.89534336,0.00018628,2]
[319287318,1710639047150,-218.17528736,0.00018628,2]
[319287320,1710639047159,-163.32544229,0.00018628,2]
[319287322,1710639047169,-167.2046961,0.00018628,2]
[319287324,1710639047183,-180.50596443,0.00018628,2]
[319287326,1710639047193,-580.13342155,0.00018628,2]
[319287328,1710639047203,-740.64983919,0.00018628,2]
[319287330,1710639047214,-184.69076473,0.00018628,2]
[319287332,1710639047223,-155.7354835,0.00018628,2]
[319287334,1710639047233,-2252.25383344,0.00018628,2]
[319287336,1710639047243,-404.59380981,0.00018628,2]
[319287338,1710639047252,-165.77010402,0.00018628,2]
[319287340,1710639047262,-294.88454091,0.00018628,2]
[319287342,1710639047271,-338.65,0.00018628,2]
[319287344,1710639047281,-838.60813367,0.00018628,2]
[319287346,1710639047291,-301.98124094,0.00018628,2]
[319287348,1710639047302,-155.01085076,0.00018628,2]
[319287350,1710639047312,-573.62428806,0.00018628,2]
[319287352,1710639047322,-155.44246813,0.00018628,2]
[319287354,1710639047331,-616.25212117,0.00018629,2]
[319287356,1710639047341,-3145.34600817,0.00018629,2]
[319287358,1710639047352,-500.0,0.00018629,2]
[319287360,1710639047362,-500.0,0.00018629,2]
[319287362,1710639047374,-500.0,0.00018629,2]
[319287364,1710639047384,-500.0,0.00018629,2]
[319287377,1710639047503,-500.0,0.00018629,2]
[319287379,1710639047512,-500.0,0.00018629,2]
[319287381,1710639047522,-500.0,0.00018629,2]
[319287383,1710639047532,-500.0,0.00018629,2]
[319287385,1710639047541,-500.0,0.00018629,2]
[319287387,1710639047551,-636.04775751,0.00018629,2]
[319287389,1710639047560,-645.09447627,0.00018629,2]
[319287391,1710639047570,-500.0,0.00018629,2]
[319287393,1710639047579,-500.0,0.00018629,2]
[319287395,1710639047589,-500.0,0.00018629,2]
[319287397,1710639047599,-500.0,0.00018629,2]
[319287399,1710639047608,-500.0,0.00018629,2]
[319287401,1710639047617,-216.83818254,0.00018629,2]
[319287403,1710639047626,-213.20150109,0.00018629,2]
[319287405,1710639047635,-500.18933218,0.00018629,2]
[319287406,1710639047648,-500.0,0.00018629,2]
[319287408,1710639047657,-500.0,0.00018629,2]
[319287411,1710639047669,-500.0,0.00018629,2]
[319287413,1710639047682,-170.67330847,0.00018629,2]
[319287415,1710639047691,-500.0,0.00018629,2]
[319287416,1710639047702,-500.0,0.00018629,2]
[319287418,1710639047711,-500.0,0.00018629,2]
[319287420,1710639047721,-557.10947549,0.00018629,2]
[319287422,1710639047731,-500.0,0.00018629,2]
[319287425,1710639047742,-500.0,0.00018629,2]
[319287427,1710639047751,-500.0,0.00018629,2]
[319287428,1710639047761,-500.0,0.00018629,2]
[319287430,1710639047770,-500.0,0.00018629,2]
[319287433,1710639047781,-500.0,0.00018629,2]
[319287434,1710639047791,-502.94412023,0.00018629,2]
[319287436,1710639047800,-240.00674681,0.00018629,2]
[319287438,1710639047809,-500.0,0.00018629,2]
[319287441,1710639047821,-443.46,0.00018629,2]
[319287443,1710639047830,-500.0,0.00018629,2]
[319287445,1710639047840,-500.0,0.00018629,2]
[319287446,1710639047849,-486.20905218,0.00018629,2]
[319287448,1710639047858,-500.0,0.00018629,2]
[319287450,1710639047867,-500.0,0.00018629,2]
[319287452,1710639047877,-608.05773769,0.00018629,2]
[319287455,1710639047888,-500.0,0.00018629,2]
[319287457,1710639047898,-500.0,0.00018629,2]
[319287458,1710639047907,-500.0,0.00018629,2]
[319287460,1710639047916,-500.0,0.00018629,2]
[319287462,1710639047931,-500.0,0.00018629,2]
[319287464,1710639047941,-500.0,0.00018629,2]
[319287466,1710639047951,-500.0,0.00018629,2]
[319287468,1710639047961,-500.0,0.00018629,2]
[319287470,1710639047972,-500.0,0.00018629,2]
[319287472,1710639047982,-500.0,0.00018629,2]
[319287475,1710639047992,-500.0,0.00018629,2]
[319287476,1710639048002,-500.0,0.00018629,2]
[319287478,1710639048011,-500.0,0.00018629,2]
[319287480,1710639048022,-555.2729762,0.00018629,2]
[319287482,1710639048031,-500.0,0.00018629,2]
[319287484,1710639048040,-500.0,0.00018629,2]
[319287486,1710639048050,-500.0,0.00018629,2]
[319287488,1710639048059,-500.0,0.00018629,2]
[319287490,1710639048068,-500.0,0.00018629,2]
[319287492,1710639048077,-500.0,0.00018629,2]
[319287494,1710639048086,-500.0,0.00018629,2]
[319287496,1710639048095,-500.0,0.00018629,2]
[319287498,1710639048104,-500.0,0.00018629,2]
[319287500,1710639048113,-500.0,0.00018629,2]
[319287502,1710639048122,-500.0,0.00018629,2]
[319287504,1710639048131,-500.0,0.00018629,2]
[319287506,1710639048140,-500.0,0.00018629,2]
[319287508,1710639048149,-500.0,0.00018629,2]
[319287510,1710639048159,-500.0,0.00018629,2]
[319287512,1710639048168,-500.0,0.00018629,2]
[319287514,1710639048182,-500.0,0.00018629,2]
[319287516,1710639048192,-500.0,0.00018629,2]
[319287518,1710639048202,-500.0,0.00018629,2]
[319287520,1710639048213,-500.0,0.00018629,2]
[319287522,1710639048223,-500.0,0.00018629,2]
[319287524,1710639048233,-500.0,0.00018629,2]
[319287526,1710639048243,-500.0,0.00018629,2]
[319287528,1710639048254,-500.0,0.00018629,2]
[319287530,1710639048263,-500.0,0.00018629,2]
[319287532,1710639048272,-500.0,0.00018629,2]
[319287534,1710639048281,-500.0,0.00018629,2]
[319287536,1710639048291,-549.33171323,0.00018629,2]
[319287538,1710639048300,-248.26331609,0.00018629,2]
[319287540,1710639048310,-500.0,0.00018629,2]
[319287542,1710639048319,-500.0,0.00018629,2]
[319287544,1710639048328,-500.0,0.00018629,2]
[319287546,1710639048338,-500.0,0.00018629,2]
[319287549,1710639048348,-502.40223265,0.00018629,2]
[319287551,1710639048357,-501.17896477,0.00018629,2]
[319287552,1710639048366,-1667468.69753358,0.0001863,2]
[319287555,1710639048382,-25585.7246845,0.0001863,2]
[319288721,1710640158533,326.14837322,0.00017446,2]
[319288722,1710640229478,155.00620025,0.00017446,2]
[319288775,1710640232280,-200.0,0.00018,2]
[319288777,1710640232289,-286.87773829,0.0001853,2]
[319288779,1710640232298,-3.62227831,0.0001853,2]
[319290078,1710640245416,194.75703045,0.00017446,2]
[319290175,1710640246408,-996.37772169,0.0001853,2]
[319290177,1710640246417,-2442.27862831,0.00018628,5]
[319291178,1710641438468,-947.15368898,0.00018628,5]
[319296405,1710643842508,-2559.09444607,0.000186,2]
[319296407,1710643842520,-1943.82766338,0.000186,2]
[319296408,1710643842529,-3711.6049957,0.00018628,5]
[319296409,1710643842538,-332.89510471,0.00018628,2]
[319296410,1710643842548,-300.0,0.00018628,2]
[319296411,1710643842558,-500.0,0.00018629,2]
[319296412,1710643842567,-500.78932778,0.00018629,2]
[319296413,1710643842576,-500.0,0.00018629,2]
[319296414,1710643842587,-161.15586397,0.00018629,2]
[319296415,1710643842597,-425.03360062,0.00018629,2]
[319296416,1710643842607,-247.73327517,0.00018629,2]
[319296417,1710643842616,-155.517345,0.00018629,2]
[319296418,1710643842625,-500.13880494,0.00018629,2]
[319296419,1710643842635,-263.45241465,0.00018629,2]
[319296420,1710643842645,-629.49492936,0.00018629,2]
[319296421,1710643842655,-501.75572193,0.00018629,2]
[319296422,1710643842664,-500.0,0.00018629,2]
[319296423,1710643842674,-500.0,0.00018629,2]
[319296424,1710643842684,-608.04986181,0.00018629,2]
[319296425,1710643842693,-502.04902448,0.00018629,2]
[319296427,1710643842703,-500.0,0.00018629,2]
[319296429,1710643842712,-500.0,0.00018629,2]
[319296431,1710643842722,-500.0,0.00018629,2]
[319296433,1710643842731,-500.7173308,0.00018629,2]
[319296435,1710643842742,-199.59155021,0.00018629,2]
[319296437,1710643842752,-501.57869902,0.00018629,2]
[319296439,1710643842762,-500.0,0.00018629,2]
[319296441,1710643842771,-501.15999623,0.00018629,2]
[319296443,1710643842781,-500.0,0.00018629,2]
[319296445,1710643842791,-500.0,0.00018629,2]
[319296447,1710643842801,-500.0,0.00018629,2]
[319296449,1710643842811,-500.0,0.00018629,2]
[319296451,1710643842820,-594.28857735,0.00018629,2]
[319296453,1710643842830,-198.79820837,0.00018629,2]
[319296455,1710643842839,-500.0,0.00018629,2]
[319296457,1710643842849,-277.56790401,0.00018629,2]
[319296459,1710643842860,-480.97411911,0.00018629,2]
[319296461,1710643842869,-512.38477909,0.00018629,2]
[319296463,1710643842879,-412.59307299,0.00018629,2]
[319296465,1710643842889,-500.0,0.00018629,2]
[319296466,1710643842899,-500.0,0.00018629,2]
[319296468,1710643842909,-501.3358703,0.00018629,2]
[319296471,1710643842919,-500.0,0.00018629,2]
[319296472,1710643842930,-164.26643299,0.00018629,2]
[319296474,1710643842941,-567.24592054,0.00018629,2]
[319296476,1710643842950,-298.640029,0.00018629,2]
[319296478,1710643842961,-300.0,0.00018629,2]
[319296480,1710643842971,-598023.07928881,0.0001863,2]
[319296571,1710643843771,-4523128.76560989,0.0001863,2]
[319297214,1710644340892,697.22382367,0.00016438,2]
[319297225,1710644923749,8658.9661337,0.00017367,2]
[319297230,1710645007203,960.15425342,0.00015774,2]
[319297231,1710645008313,637.00771267,0.00016562,2]
[319298709,1710645223593,158.359544,0.00017357,2]
[319298710,1710645300296,596.1910911,0.00017471,2]
[319298711,1710645322692,313.4951309,0.00017357,2]
[319298712,1710645340705,312.65899403,0.00017471,2]
[319298713,1710645354624,313.18098068,0.00017471,2]
[319298715,1710645719044,244.518346,0.00017332,2]
[319298716,1710645785316,15995.48858038,0.00017332,2]
[319298717,1710645790676,312.60129477,0.00017332,2]
[319298718,1710645801294,5215.17023122,0.00017332,2]
[319298719,1710645808713,312.60129477,0.00017332,2]
[319298720,1710645832753,312.60129477,0.00017332,2]
[319298721,1710645848734,312.60129477,0.00017332,2]
[319298722,1710645853158,2434.13928,0.00017332,2]
[319298723,1710645870675,357.13159477,0.00017332,2]
[319298724,1710645890394,19039.20049505,0.00017332,2]
[319298725,1710645904173,3630.7144125,0.00017332,2]
[319298726,1710646068044,337.02542978,0.00017344,2]
[319298727,1710646076491,247.68602279,0.00017344,2]
[319298728,1710646120951,155.59545092,0.00017344,2]
[319298735,1710646166297,155.00465014,0.00017344,2]
[319298736,1710646182296,155.00465014,0.00017344,2]
[319298737,1710646204584,16647.37308174,0.00017414,2]
[319298768,1710646232059,204.92846,0.00017404,2]
[319298777,1710646232137,-337.02542978,0.00017513,2]
[319298778,1710646232146,-155.00465014,0.00017514,2]
[319298779,1710646232156,-2600.72417226,0.00017683,2]
[319298781,1710646232165,-2905.133286,0.00017684,2]
[319298783,1710646232175,-500.25663572,0.00018,2]
[319298785,1710646232184,-3062.16910843,0.0001848,3]
[319298786,1710646232193,-824.14146842,0.000185,2]
[319298788,1710646232204,-2318.46827717,0.000185,2]
[319298789,1710646232216,-2248.71,0.000185,2]
[319298790,1710646232226,-4692.10040569,0.000185,2]
[319298791,1710646232238,-4153.02425628,0.000185,2]
[319299310,1710646243182,-1496.85559244,0.000185,2]
[319299312,1710646243192,-558.96031964,0.00018529,2]
[319299314,1710646243203,-558.96031961,0.00018529,2]
[319299316,1710646243213,-558.96031961,0.0001853,2]
[319299318,1710646243222,-558.96031961,0.0001853,2]
[319299320,1710646243231,-558.96031961,0.0001853,2]
[319299322,1710646243242,-188.6510365,0.0001853,2]
[319299323,1710646243254,-4508.20553512,0.0001853,2]
[319299326,1710646243264,-246.30742293,0.0001853,2]
[319299328,1710646243274,-306.0,0.000186,2]
[319299329,1710646243287,-306.0,0.000186,2]
[319299332,1710646243298,-201.1557499,0.000186,2]
[319299334,1710646243308,-306.0,0.000186,2]
[319299336,1710646243319,-153.0,0.000186,2]
[319299337,1710646243328,-153.0,0.000186,2]
[319299339,1710646243338,-298.64,0.00018628,2]
[319299342,1710646243349,-187.95134953,0.00018628,2]
[319299344,1710646243359,-1247.58660625,0.00018628,2]
[319299345,1710646243369,-209.01983337,0.00018628,2]
[319299347,1710646243378,-158.540383,0.00018628,2]
[319299350,1710646243387,-300.00003,0.00018628,2]
[319299352,1710646243396,-300.0,0.00018628,2]
[319299353,1710646243407,-500.0,0.00018629,2]
[319299356,1710646243416,-500.0,0.00018629,2]
[319299357,1710646243425,-500.0,0.00018629,2]
[319299359,1710646243434,-500.0,0.00018629,2]
[319299361,1710646243443,-500.0,0.00018629,2]
[319299363,1710646243452,-455.02476189,0.00018629,2]
[319299365,1710646243461,-500.0,0.00018629,2]
[319299367,1710646243470,-500.0,0.00018629,2]
[319299369,1710646243479,-500.0,0.00018629,2]
[319299371,1710646243489,-500.0,0.00018629,2]
[319299374,1710646243499,-500.0,0.00018629,2]
[319299375,1710646243510,-500.0,0.00018629,2]
[319299377,1710646243519,-500.0,0.00018629,2]
[319299379,1710646243529,-500.0,0.00018629,2]
[319299381,1710646243538,-500.0,0.00018629,2]
[319299383,1710646243547,-500.0,0.00018629,2]
[319299386,1710646243557,-500.0,0.00018629,2]
[319299387,1710646243565,-427.67348646,0.00018629,2]
[319299389,1710646243575,-596.46444731,0.00018629,2]
[319299391,1710646243584,-500.0,0.00018629,2]
[319299393,1710646243593,-500.0,0.00018629,2]
[319299395,1710646243603,-500.0,0.00018629,2]
[319299397,1710646243612,-500.0,0.00018629,2]
[319299400,1710646243621,-500.0,0.00018629,2]
[319299402,1710646243631,-500.0,0.00018629,2]
[319299403,1710646243640,-500.0,0.00018629,2]
[319299406,1710646243649,-500.0,0.00018629,2]
[319299408,1710646243659,-500.0,0.00018629,2]
[319299410,1710646243668,-500.0,0.00018629,2]
[319299412,1710646243678,-500.0,0.00018629,2]
[319299414,1710646243687,-189.7,0.00018629,2]
[319299416,1710646243696,-500.0,0.00018629,2]
[319299418,1710646243705,-500.0,0.00018629,2]
[319299420,1710646243714,-500.0,0.00018629,2]
[319299422,1710646243723,-500.0,0.00018629,2]
[319299424,1710646243734,-463.85114371,0.00018629,2]
[319299426,1710646243742,-204.84717787,0.00018629,2]
[319299428,1710646243752,-500.0,0.00018629,2]
[319299430,1710646243761,-500.0,0.00018629,2]
[319299432,1710646243770,-500.0,0.00018629,2]
[319299434,1710646243780,-500.0,0.00018629,2]
[319299436,1710646243789,-500.0,0.00018629,2]
[319299438,1710646243799,-500.0,0.00018629,2]
[319299440,1710646243808,-500.0,0.00018629,2]
[319299442,1710646243817,-500.0,0.00018629,2]
[319299444,1710646243826,-500.0,0.00018629,2]
[319299446,1710646243835,-500.0,0.00018629,2]
[319299448,1710646243844,-500.0,0.00018629,2]
[319299450,1710646243853,-500.0,0.00018629,2]
[319299452,1710646243862,-500.0,0.00018629,2]
[319299454,1710646243871,-500.0,0.00018629,2]
[319299456,1710646243880,-500.0,0.00018629,2]
[319299458,1710646243890,-500.0,0.00018629,2]
[319299460,1710646243899,-500.0,0.00018629,2]
[319299462,1710646243908,-500.0,0.00018629,2]
[319299464,1710646243917,-638.3,0.00018629,2]
[319299466,1710646243926,-500.0,0.00018629,2]
[319299468,1710646243935,-2576264.14532814,0.0001863,2]
[319300544,1710646483343,400.88974054,0.00016438,2]
[319300550,1710647307784,373.009331,0.00017305,2]
[319300552,1710647350899,2000.0,0.00017378,2]
[319300554,1710647368232,24900.0,0.00017452,2]
[319300588,1710647432802,-337.02542978,0.00017527,2]
[319300589,1710647432812,-182.97457022,0.00017528,2]
[319300591,1710647432825,-117.02542978,0.00017528,2]
[319300593,1710647432835,-208.20452526,0.00017584,2]
[319300595,1710647432844,-2000.0,0.00017989,2]
[319300597,1710647432853,-341.73173343,0.00018528,2]
[319300599,1710647432862,-341.73173342,0.00018529,2]
[319300600,1710647432871,-341.73173342,0.00018529,2]
[319300602,1710647432880,-341.73173342,0.0001853,2]
[319300604,1710647432889,-341.73173342,0.0001853,2]
[319300606,1710647432900,-9518.71137785,0.0001853,2]
[319300658,1710647438509,-971.98098773,0.00018345,2]
[319300659,1710647438522,-95696.22350703,0.0001853,2]
[319300660,1710647438531,-215.23165686,0.00018628,2]
[319300661,1710647438540,-1584.33216353,0.00018628,2]
[319300662,1710647438550,-808.70598602,0.00018628,2]
[319300663,1710647438559,-10062.8814021,0.00018628,2]
[319300664,1710647438568,-866.70746421,0.00018628,2]
[319300665,1710647438577,-331.50911962,0.00018628,2]
[319300666,1710647438586,-241.39364502,0.00018628,2]
[319300667,1710647438597,-353.32645811,0.00018628,2]
[319300668,1710647438606,-500.0,0.00018628,2]
[319300669,1710647438615,-575.09211436,0.00018628,2]
[319300670,1710647438624,-500.0,0.00018628,2]
[319300671,1710647438633,-500.0,0.00018628,2]
[319300672,1710647438643,-500.0,0.00018628,2]
[319300673,1710647438652,-500.0,0.00018628,2]
[319300674,1710647438661,-586.72654016,0.00018628,2]
[319300675,1710647438669,-500.0,0.00018628,2]
[319300676,1710647438678,-646.07691587,0.00018628,2]
[319300677,1710647438687,-500.0,0.00018629,2]
[319300678,1710647438696,-500.0,0.00018629,2]
[319300679,1710647438705,-458.11463354,0.00018629,2]